{"text_format":"3","workbook":"xlsx","n_sheets":1,"sheets":["SBD 3,1"],"not_rendered":{"images":1,"defined_names":1},"read":"whole","date_system":"1900"}

{"sheet":"SBD 3,1","index":0,"n_rows":140,"n_cols":8,"rows_kept":140,"merged":[[2,4,2,6],[5,1,5,7],[7,1,7,7],[8,1,9,7],[10,1,11,7],[12,1,12,7],[14,1,14,7],[15,1,15,7],[16,0,17,0],[16,1,17,1],[16,2,17,2],[16,3,17,3],[16,4,17,4],[16,5,17,5],[16,6,17,6],[16,7,17,7],[36,0,37,0],[37,1,37,7],[38,1,39,1],[38,2,39,2],[38,3,39,3],[38,4,39,4],[38,5,39,5],[38,6,39,6],[38,7,39,7],[57,0,58,0],[59,1,59,7],[60,1,61,1],[60,2,61,2],[60,3,61,3],[60,4,61,4],[60,5,61,5],[60,6,61,6],[60,7,61,7],[78,0,80,0],[82,1,82,7],[83,1,84,1],[83,2,84,2],[83,3,84,3],[83,4,84,4],[83,5,84,5],[83,6,84,6],[83,7,84,7],[100,0,101,0],[105,1,105,7],[106,1,107,1],[106,2,107,2],[106,3,107,3],[106,4,107,4],[106,5,107,5],[106,6,107,6],[106,7,107,7],[133,1,136,7],[139,3,139,6]]}
[]
[]
[{"$nulls":4},"FIRM PRICES"]
[]
[]
[null,"NAME OF THE BIDDER:"]
[]
[null,"NAME OF THE BIDDER: "]
[null,"DESCRIPTION OF TENDER:REQUEST FOR PROPOSALS (RFP)\nFOR THE PROCUREMENT OF CORPORATE UNIFORM FOR THE GPAA EMPLOYEES FOR THE PERIOD OF FIVE YEARS"]
[]
[null,"BID NUMBER: GPAA 04/2023 "]
[]
[null,"CLOSING DATE: 30 August 2023"]
[null,"TIME:    11:00 AM"]
[null,"PRICING SCHEDULE SBD 3.1"]
[null,"YEAR 1"]
["No","Description","Quantity","Colour","Size","Unit Price (VAT EXCL)","Unit of measure","Total"]
[]
[null,"Name tags ",1000,"Full colour domed name tag with a magnet","N/A",null,"Each",{"$f":"C19*F19","v":0}]
[null,"Scarves ",1000,"Brown colour palette","N/A",null,"Each",{"$f":"C20*F20","v":0}]
[null,"Shirts ",1500,"White","30 - 52",null,"Each",0]
[null,"Pants ",1500,"2 Black, 1 Beige (Chino)","30 - 52",null,"Each",0]
[null,"Ties ",1000,"Brown colour palette","N/A",null,"Each",0]
[null,"Golf shirts ",1500,"Black, White and Brown (Tawny/Tortilla)","30 - 52",null,"Each",0]
[null,"Skirts ",1000,"Black","30 - 52",null,"Each",0]
[null,"Blouses ",1500,"Brown colour palette, White","30 - 52",null,"Each",0]
[null,"Dresses ",1000,"Black","30 - 52",null,"Each",0]
[null,"Jerseys ",1000,"Black","30 - 52",null,"Each",0]
[null,"Corporate blazers/Jackets ",1000,"Black","30 - 52",null,"Each",0]
[null,"Windbreakers ",500,"Black","30 - 52",null,"Each",0]
[null,"Name tags ",700,"Full colour domed name tag with a magnet","30 - 52",null,"Each",0]
[null,"Windbreakers ",700,"Black","30 - 52",null,"Each",0]
[null,"Golf shirts ",1400,"Black, White","30 - 52",null,"Each",0]
[null,"Ties ",700,"Green colour palette","30 - 52",null,"Each",0]
["A","caps",1400,"black,brown","N/A",null,"Each",{"$f":"C35*F35","v":0}]
[null,"Scarves ",700,"Green colour palette","30 - 52",null,"Each",0]
[null,"SUB- TOTAL ( A) ",{"$nulls":5},{"$f":"SUM(H19:H36)","v":0}]
[null,"YEAR 2"]
[null,"Description","Quantity","Colour","Size","Unit Price (VAT EXCL)","Unit of measure","Total"]
[]
[null,"Name tags ",1000,"Full colour domed name tag with a magnet","N/A",null,"Each",{"$f":"C41*F41","v":0}]
[null,"Scarves ",1000,"Brown colour palette","N/A",null,"Each",{"$f":"C42*F42","v":0}]
[null,"Shirts ",1500,"White","30 - 52",null,"Each",0]
[null,"Pants ",1500,"2 Black, 1 Beige (Chino)","30 - 52",null,"Each",0]
[null,"Ties ",1000,"Brown colour palette","N/A",null,"Each",0]
[null,"Golf shirts ",1500,"Black, White and Brown (Tawny/Tortilla)","30 - 52",null,"Each",0]
[null,"Skirts ",1000,"Black","30 - 52",null,"Each",0]
[null,"Blouses ",1500,"Brown colour palette, White","30 - 52",null,"Each",0]
[null,"Dresses ",1000,"Black","30 - 52",null,"Each",0]
[null,"Jerseys ",1000,"Black","30 - 52",null,"Each",0]
[null,"Corporate blazers/Jackets ",1000,"Black","30 - 52",null,"Each",0]
[null,"Windbreakers ",500,"Black","30 - 52",null,"Each",0]
[null,"Name tags ",700,"Full colour domed name tag with a magnet","30 - 52",null,"Each",0]
[null,"Windbreakers ",700,"Black","30 - 52",null,"Each",0]
["B","Golf shirts ",1400,"Black, White","30 - 52",null,"Each",0]
[null,"Ties ",700,"Green colour palette","30 - 52",null,"Each",0]
[null,"caps",1400,"black,brown","N/A",null,"Each",{"$f":"C57*F57","v":0}]
[null,"Scarves ",700,"Green colour palette","30 - 52",null,"Each",0]
[null,"SUB- TOTAL ( B) ",{"$nulls":5},{"$f":"SUM(H41:H58)","v":0}]
[null,"YEAR 3"]
[null,"Description","Quantity","Colour","Size","Unit Price (VAT EXCL)","Unit of measure","Total"]
[]
[]
[null,"Name tags ",1000,"Full colour domed name tag with a magnet","N/A",null,"Each",{"$f":"C64*F64","v":0}]
[null,"Scarves ",1000,"Brown colour palette","N/A",null,"Each",{"$f":"C65*F65","v":0}]
[null,"Shirts ",1500,"White","30 - 52",null,"Each",0]
[null,"Pants ",1500,"2 Black, 1 Beige (Chino)","30 - 52",null,"Each",0]
[null,"Ties ",1000,"Brown colour palette","N/A",null,"Each",0]
[null,"Golf shirts ",1500,"Black, White and Brown (Tawny/Tortilla)","30 - 52",null,"Each",0]
[null,"Skirts ",1000,"Black","30 - 52",null,"Each",0]
[null,"Blouses ",1500,"Brown colour palette, White","30 - 52",null,"Each",0]
[null,"Dresses ",1000,"Black","30 - 52",null,"Each",0]
[null,"Jerseys ",1000,"Black","30 - 52",null,"Each",0]
[null,"Corporate blazers/Jackets ",1000,"Black","30 - 52",null,"Each",0]
[null,"Windbreakers ",500,"Black","30 - 52",null,"Each",0]
[null,"Name tags ",700,"Full colour domed name tag with a magnet","30 - 52",null,"Each",0]
["C","Windbreakers ",700,"Black","30 - 52",null,"Each",0]
[null,"Golf shirts ",1400,"Black, White","30 - 52",null,"Each",0]
[null,"Ties ",700,"Green colour palette","30 - 52",null,"Each",0]
[null,"caps",1400,"black,brown","N/A",null,"Each",{"$f":"C80*F80","v":0}]
[null,"Scarves ",700,"Green colour palette","30 - 52",null,"Each",0]
[null,"SUB- TOTAL ( C) ",{"$nulls":5},{"$f":"SUM(H64:H81)","v":0}]
[null,"YEAR 4"]
[null,"Description","Quantity","Colour","Size","Unit Price (VAT EXCL)","Unit of measure","Total"]
[]
[]
[null,"Name tags ",1000,"Full colour domed name tag with a magnet","N/A",null,"Each",{"$f":"C87*F87","v":0}]
[null,"Scarves ",1000,"Brown colour palette","N/A",null,"Each",{"$f":"C88*F88","v":0}]
[null,"Shirts ",1500,"White","30 - 52",null,"Each",0]
[null,"Pants ",1500,"2 Black, 1 Beige (Chino)","30 - 52",null,"Each",0]
[null,"Ties",1000,"Brown colour palette","N/A",null,"Each",0]
[null,"Golf shirts ",1500,"Black, White and Brown (Tawny/Tortilla)","30 - 52",null,"Each",0]
[null,"Skirts",1000,"Black","30 - 52",null,"Each",0]
[null,"Blouses ",1500,"Brown colour palette, White","30 - 52",null,"Each",0]
[null,"Dresses",1000,"Black","30 - 52",null,"Each",0]
[null,"Jerseys ",1000,"Black","30 - 52",null,"Each",0]
[null,"Corporate blazers/Jackets ",1000,"Black","30 - 52",null,"Each",0]
[null,"Windbreakers ",500,"Black","30 - 52",null,"Each",0]
["D","Name tags ",700,"Full colour domed name tag with a magnet","30 - 52",null,"Each",0]
[null,"Windbreakers ",700,"Black","30 - 52",null,"Each",0]
[null,"Golf shirts ",1400,"Black, White","30 - 52",null,"Each",0]
[null,"Ties ",700,"Green colour palette","30 - 52",null,"Each",0]
[null,"caps",1400,"black,brown","N/A",null,"Each",{"$f":"C103*F103","v":0}]
[null,"Scarves ",700,"Green colour palette","30 - 52",null,"Each",0]
[null,"SUB- TOTAL ( D) ",{"$nulls":5},{"$f":"SUM(H87:H104)","v":0}]
[null,"YEAR 5"]
[null,"Description","Quantity","Colour","Size","Unit Price (VAT EXCL)","Unit of measure","Total"]
[]
[]
[null,"Name tags ",1000,"Full colour domed name tag with a magnet","N/A",null,"Each",{"$f":"F110*C110","v":0}]
[null,"Scarves ",1000,"Brown colour palette","N/A",null,"Each",{"$f":"F111*C111","v":0}]
[null,"Shirts ",1500,"White","30 - 52",null,"Each",0]
[null,"Pants ",1500,"2 Black, 1 Beige (Chino)","30 - 52",null,"Each",0]
[null,"Ties ",1000,"Brown colour palette","N/A",null,"Each",0]
[null,"Golf shirts ",1500,"Black, White and Brown (Tawny/Tortilla)","30 - 52",null,"Each",0]
[null,"Skirts ",1000,"Black","30 - 52",null,"Each",0]
[null,"Blouses ",1500,"Brown colour palette, White","30 - 52",null,"Each",0]
[null,"Dresses ",1000,"Black","30 - 52",null,"Each",0]
[null,"Jerseys ",1000,"Black","30 - 52",null,"Each",0]
[null,"Corporate blazers/Jackets ",1000,"Black","30 - 52",null,"Each",0]
["E","Windbreakers ",500,"Black","30 - 52",null,"Each",0]
[null,"Name tags ",700,"Full colour domed name tag with a magnet","30 - 52",null,"Each",0]
[null,"Windbreakers ",700,"Black","30 - 52",null,"Each",0]
[null,"Golf shirts ",1400,"Black, White","30 - 52",null,"Each",0]
[null,"Ties ",700,"Green colour palette","30 - 52",null,"Each",0]
[null,"caps",1400,"black,brown","N/A",null,"Each",{"$f":"C126*F126","v":0}]
[null,"Scarves",700,"Green colour palette","30 - 52",null,"Each",0]
[null,"SUB- TOTAL ( E) ",{"$nulls":5},{"$f":"SUM(H110:H127)","v":0}]
[null,"TOTAL BID PRICE (VAT EXCL) ( A+B+C+D+E)",{"$nulls":5},{"$f":"H37+H59+H82+H105+H128","v":0}]
[null,"VAT ",{"v":0.15,"d":"15%"},{"$nulls":4},{"$f":"H129*0.15","v":0}]
[null,"TOTAL BID PRICE (VAT INC) ",{"$nulls":5},{"$f":"H130+H129","v":0}]
[]
[]
[null,"1. No other form of pricing template will be accepted. Failure to comply will result in the disqualification of the bid. \n2. An incomplete pricing schedule (SBD 3.1) will also result in a disqualification."]
[]
[]
[]
[]
[]
[null,"Signed: ____________________",null,"Date:_______________________________________"]